[Event "Mitropa Cup Women 2022"]
[Site "Corte"]
[Date "2022.05.08"]
[Round "9.4"]
[White "Zhuang, Yongzhe"]
[Black "Sevcikova, Lucia"]
[Result "1/2-1/2"]
[ECO "C01"]
[WhiteElo "1701"]
[BlackElo "2019"]
[Annotator "TA"]
[PlyCount "79"]
[EventDate "2022.04.30"]
[EventType "team-tourn"]
[EventCountry "FRA"]
[SourceTitle "playchess.com"]
[Source "ChessBase"]
[SourceQuality "1"]
[WhiteTeam "Switzerland"]
[BlackTeam "Slovakia"]
[WhiteTeamCountry "SUI"]
[BlackTeamCountry "SVK"]
[TimeControl "40/5400+30:1800+30"]

{[%evp 10,79,31,5,83,72,84,86,90,99,84,72,91,37,81,5,34,9,27,-10,-4,-35,0,0,0,-12,65,25,46,45,41,35,154,169,200,149,360,266,422,427,439,442,462,462,617,639,619,539,545,258,277,249,406,0,0,0,70,0,787,-108,-79,-91,0,-16,-17,-127,0,0,0,-125,0,0]} 1. e4 {[%emt 0:00:07]} e6 {[%emt 0:00:05]} 2. d4 {[%emt 0:00:06]} d5 {[%emt 0:00:08]} 3. exd5 {[%emt 0:00:14]} exd5 {[%emt 0:00:04]} 4. Nf3 {[%emt 0:00:09]} Bd6 {[%emt 0:00:19]} 5. c4 {[%emt 0:00:15]} c6 {[%emt 0:02:18]} 6. Nc3 {[%emt 0:00:28]} (6. c5 $5 {[%cal Rc5d6]} Bc7 7. Nc3 $11) 6... Qe7+ {[%emt 0:09:14] C01: French: Exchange Variation.} (6... Nf6 $11 {keeps the balance.}) 7. Be2 $16 {[%emt 0:08:35]} dxc4 {[%emt 0:08:46]} 8. O-O {[%emt 0:00:26]} Nf6 {[%emt 0:01:22] White is better.} 9. Re1 {[%emt 0:01:06]} O-O {[%emt 0:01:09]} 10. Bxc4 {[%emt 0:00:20]} Qc7 {[%emt 0:01:12] [#]} 11. h3 $146 {[%emt 0:09:11] White is more active.} (11. Bg5 $16) ({Predecessor:} 11. Bg5 Nbd7 12. Rc1 Bf4 13. Bxf4 Qxf4 14. Ne2 Qd6 15. Ng3 Nb6 16. Bd3 Nbd5 17. Nf5 {½-½ (28) Kratz,A (1854)-Steinke,H (1644) Dortmund 2019}) 11... Bf5 {[%emt 0:05:19]} 12. a4 {[%emt 0:10:55]} (12. Nh4 $16 Bg6 13. Nxg6 hxg6 14. Qd3) 12... h6 $11 {[%emt 0:05:21]} 13. Ne5 {[%emt 0:03:17][%cal Oc1h6] Black should prevent Bxh6!} Nbd7 {[%emt 0:05:59][%cal Rd7e5]} 14. f4 {[%emt 0:16:29]} (14. Qf3 $5 {[%cal Rf3f5]} Be6 15. Bxe6 fxe6 16. Ng6 $14) 14... Nb6 {[%emt 0:06:17]} 15. Ba2 {[%emt 0:02:01]} Rad8 {[%emt 0:05:09]} 16. g4 $36 {[%emt 0:07:04][%mdl 2048] Black is under pressure.} Bh7 {[%emt 0:06:40]} 17. Qf3 {[%emt 0:02:57] Inhibits Nbd5.} Bb4 {[%emt 0:08:39]} (17... Nbd5 $11) 18. Be3 {[%emt 0:09:12]} (18. g5 $5 {[%cal Rg5f6]} hxg5 19. fxg5 $14) 18... Nfd5 {[%emt 0:03:45]} 19. Bd2 {[%emt 0:00:27]} a5 {[%emt 0:05:56]} 20. f5 {[%emt 0:05:46][%cal Bf4f5,Bf5f6][%mdl 32]} Nxc3 {[%emt 0:09:00]} (20... Kh8 $14) 21. bxc3 $16 {[%emt 0:00:17]} Bd6 {[%emt 0:00:52]} 22. f6 {[%emt 0:05:08]} g5 {[%emt 0:04:34]} (22... Nd5 $16) 23. h4 {[%emt 0:02:41]} Nd7 {[%emt 0:01:52]} (23... Bxe5 $142 24. Rxe5 Rde8) 24. Nxf7 $18 {[%emt 0:07:04]} Rxf7 {[%emt 0:01:27]} 25. Bxf7+ {[%emt 0:00:08]} Kxf7 {[%emt 0:00:53] [#]} 26. Re7+ $1 {[%emt 0:00:14][%mdl 512]} Kg8 {[%emt 0:02:37]} (26... Bxe7 27. fxe7+) 27. Rg7+ {[%emt 0:05:25]} Kh8 {[%emt 0:00:41]} 28. hxg5 {[%emt 0:00:56]} Rg8 {[%emt 0:02:08]} 29. g6 {[%emt 0:01:10]} (29. gxh6 $142 Bh2+ 30. Kg2) 29... Bxg6 {[%emt 0:00:20]} 30. Bxh6 {[%emt 0:00:51] Threatens to win with Rf1. Really sharp!} Rxg7 $2 {[%emt 0:01:25]} (30... Qc8 {keeps fighting.}) 31. Bxg7+ $2 {[%emt 0:00:31]} (31. fxg7+ $18 Kg8 32. Rf1) 31... Kg8 $11 {[%emt 0:00:14]} 32. Qh3 {[%emt 0:01:21]} Bg3 {[%emt 0:00:55] Prevents Re1.} (32... Nb6 $11) 33. Qh6 {[%emt 0:00:34]} (33. g5 $14 Qf4 34. f7+ Kxg7 35. Qh6+ Kxf7 36. Rf1) 33... Qf4 $2 {[%emt 0:01:08][%mdl 8192] [#]} 34. Qxf4 $2 {[%emt 0:00:46]} (34. Rf1 Qxh6 35. Bxh6 Kf7 $15) (34. f7+ $1 $18 Kxf7 35. Rf1 Qxf1+ 36. Kxf1) 34... Bxf4 $17 {[%emt 0:00:03] This bishop pair is nice.} 35. Re1 {[%emt 0:00:27]} Bg5 {[%emt 0:00:47]} ({Black should play} 35... Bd6 $17 36. Re2 Bf7) 36. Re6 {[%emt 0:00:39]} Bf7 {[%emt 0:00:43][%mdl 1024] Black has compensation.} 37. Rd6 {[%emt 0:00:45]} (37. Re7 $1 $11 Nb6 38. Re5 (38. Rxb7 Nxa4 39. Ra7 Nxc3 $17)) 37... Be8 {[%emt 0:00:08] Hoping for ...Kf7.} 38. Re6 $1 {[%emt 0:00:14]} Bf7 {[%emt 0:00:05]} 39. Rd6 {[%emt 0:00:18]} Be8 {[%emt 0:00:11]} ({Better is} 39... Nb6 $17 {...Kh7 is the strong threat.} 40. Rd8+ Kh7) 40. Re6 $1 {[%emt 0:00:38] Weighted Error Value: White=0.57/Black=0.50} 1/2-1/2

[Event "Mitropa Cup Women 2022"]
[Site "Corte"]
[Date "2022.05.08"]
[Round "9.5"]
[White "Unuk, Laura"]
[Black "Guichard, Pauline"]
[Result "1/2-1/2"]
[ECO "D37"]
[WhiteElo "2338"]
[BlackElo "2377"]
[Annotator "TA"]
[PlyCount "101"]
[EventDate "2022.04.30"]
[EventType "team-tourn"]
[EventCountry "FRA"]
[SourceTitle "playchess.com"]
[Source "ChessBase"]
[SourceQuality "1"]
[WhiteTeam "Slovenia"]
[BlackTeam "France"]
[WhiteTeamCountry "SLO"]
[BlackTeamCountry "FRA"]
[TimeControl "40/5400+30:1800+30"]

{[%evp 9,101,15,6,-6,10,0,0,0,9,0,20,2,21,-12,-14,-35,-34,-50,0,-26,0,0,9,0,39,0,41,38,45,38,43,35,47,49,27,35,41,9,43,0,0,0,0,-47,-43,-45,-51,-51,-51,-51,-51,-51,-41,-56,-46,-86,-72,-78,-78,-102,-56,-53,-51,-51,-51,-51,-42,-37,-19,-23,0,0,0,0,-6,-8,0,0,0,0,0,0,0,-6,0,0,0,0,0,0,0,0,0,0]} 1. d4 {[%emt 0:00:04]} Nf6 {[%emt 0:00:07]} 2. c4 {[%emt 0:00:22]} e6 {[%emt 0:00:09]} 3. Nf3 {[%emt 0:00:06]} d5 {[%emt 0:00:05]} 4. Nc3 {[%emt 0:00:19]} dxc4 {[%emt 0:00:18]} 5. e4 {[%emt 0:03:18]} Bb4 {[%emt 0:00:11]} 6. Bxc4 {[%emt 0:00:08] D24: Queen's Gambit Accepted: 3 Nf3 Nf6 4 Nc3.} Nxe4 {[%emt 0:00:16]} 7. O-O {[%emt 0:00:05]} Nxc3 {[%emt 0:00:07]} 8. bxc3 {[%emt 0:00:05]} (8. Qb3 Nd5 9. Bxd5 Qxd5 $17) 8... Be7 {[%emt 0:00:05]} 9. Ne5 {[%emt 0:00:44]} O-O {[%emt 0:01:23]} 10. Qg4 {[%emt 0:01:22][%mdl 1024] White has compensation.} Nc6 {[%emt 0:04:41]} 11. Bh6 {[%emt 0:13:38][%csl Gh6][%cal Rg4g7]} Bf6 {[%emt 0:00:34]} 12. Rae1 {[%emt 0:02:03]} Ne7 $1 {[%emt 0:14:39][%cal Oc7c5]} 13. Bc1 {[%emt 0:13:23] [#]} Nf5 $146 {[%emt 0:01:56]} (13... c5 $15) ({Predecessor:} 13... c5 14. Ba3 b6 15. Qf3 Rb8 16. Ng4 Nf5 17. dxc5 Be7 18. Ne5 Bxc5 19. Bxc5 bxc5 20. Nc6 Bb7 21. Nxd8 Bxf3 22. Nxf7 {½-½ (22) Bacrot,E (2711)-Van Kampen,R (2626) Jerusalem 2015}) 14. Qh3 {[%emt 0:11:30]} c5 {[%emt 0:15:13]} 15. Ba3 $1 $36 {[%emt 0:05:48][%mdl 2048] White fights for an advantage.} b6 {[%emt 0:14:15]} 16. dxc5 {[%emt 0:06:55]} b5 {[%emt 0:16:42]} 17. Bxb5 {[%emt 0:11:11]} Qa5 {[%emt 0:04:56][%csl LRa3,LRb5]} (17... Qc7 $5 {[%cal Rf6e5]} 18. f4 Rd8 $14) 18. c4 {[%emt 0:01:10]} a6 {[%emt 0:00:14]} 19. Bc6 {[%emt 0:00:23]} Rb8 {[%emt 0:00:09] [#]} 20. Be4 $1 {[%emt 0:05:13]} Bxe5 {[%emt 0:01:54]} 21. Bxf5 {[%emt 0:00:11][%mdl 64] Discovered Attack} exf5 {[%emt 0:00:03]} 22. Rxe5 {[%emt 0:00:10]} Be6 {[%emt 0:00:41]} 23. Qe3 {[%emt 0:05:43]} f4 {[%emt 0:05:52]} 24. Qf3 {[%emt 0:02:26]} Bxc4 {[%emt 0:03:45]} 25. Rfe1 {[%emt 0:00:23]} Bxa2 {[%emt 0:01:16]} 26. Bc1 {[%emt 0:01:09]} (26. h3 $11 {feels stronger.} Rb3 27. Qc6 Rxa3 28. Re8) 26... f6 $1 $15 {[%emt 0:02:58]} 27. R5e2 {[%emt 0:06:47]} Bc4 {[%emt 0:00:17]} 28. Re7 {[%emt 0:00:21]} Qxc5 {[%emt 0:00:36]} 29. Qxf4 {[%emt 0:00:37]} Bf7 $1 {[%emt 0:01:39]} (29... Rb1 $2 30. Rc7 (30. Qg4 $2 Qxe7 31. Qxc4+ Qf7 $19) 30... Qb4 31. Qxc4+ $18) 30. Rc7 {[%emt 0:02:30] [#]} Rfe8 $1 {[%emt 0:02:32][%cal Re8e1]} 31. Be3 {[%emt 0:04:58]} (31. Rxe8+ Rxe8) 31... Qd5 {[%emt 0:00:20]} 32. h4 {[%emt 0:00:32]} a5 {[%emt 0:01:17]} 33. Rec1 {[%emt 0:01:08]} Rb4 {[%emt 0:00:47]} ({But not} 33... Bg6 $6 34. R7c5 Qd8 35. h5 $11) 34. Qg3 {[%emt 0:00:48] [#]} Qh5 {[%emt 0:05:16] Prevents Bh6.} (34... h5 $1 $17 {Hoping for ...Rg4.} 35. R7c5 Qa2) 35. R7c5 {[%emt 0:00:35]} Qxh4 {[%emt 0:01:53]} 36. Qxh4 {[%emt 0:01:33]} Rxh4 {[%emt 0:00:04]} 37. Rxa5 {[%emt 0:00:02][%cal Bc5a5,Ba5a7,Ba7d7,Bd7d2][%mdl 32]} Rhe4 {[%emt 0:00:16]} 38. Rc7 {[%emt 0:00:27]} Rg4 {[%emt 0:01:23]} 39. Kh2 {[%emt 0:00:55]} h5 {[%emt 0:00:33]} 40. Raa7 {[%emt 0:00:48] The position is equal.} Bd5 {[%emt 0:00:11]} 41. f3 {[%emt 0:10:03]} Rg6 {[%emt 0:00:09]} 42. Re7 {[%emt 0:00:03]} Rb8 {[%emt 0:03:20]} 43. Rad7 {[%emt 0:05:48]} Bc4 {[%emt 0:09:59]} 44. Rd2 {[%emt 0:01:22]} Bf1 {[%emt 0:01:50]} 45. Rf2 {[%emt 0:02:43]} Rb1 {[%emt 0:02:17]} 46. Ra7 {[%emt 0:04:20]} Kh7 {[%emt 0:05:38]} 47. Ra4 {[%emt 0:02:11]} Re1 {[%emt 0:03:01] Threatens to win with ...Bxg2.} 48. Bd2 {[%emt 0:00:24]} Rd1 {[%emt 0:00:31][%cal Of1g2]} 49. Be3 {[%emt 0:02:00]} Re1 {[%emt 0:00:48] And now ...Bxg2 would win.} 50. Bd2 {[%emt 0:01:23]} Rd1 {[%emt 0:00:39][%cal Of1g2] Strongly threatening ...Bxg2!} 51. Be3 {[%emt 0:02:50] Weighted Error Value: White=0.09 (flawless) /Black=0.08 (flawless)} 1/2-1/2

[Event "Mitropa Cup Women 2022"]
[Site "Corte"]
[Date "2022.05.08"]
[Round "9.6"]
[White "Navrotescu, Andreea"]
[Black "Urh, Zala"]
[Result "1-0"]
[ECO "D37"]
[WhiteElo "2318"]
[BlackElo "2315"]
[Annotator "TA"]
[PlyCount "117"]
[EventDate "2022.04.30"]
[EventType "team-tourn"]
[EventCountry "FRA"]
[SourceTitle "playchess.com"]
[Source "ChessBase"]
[SourceQuality "1"]
[WhiteTeam "France"]
[BlackTeam "Slovenia"]
[WhiteTeamCountry "FRA"]
[BlackTeamCountry "SLO"]
[TimeControl "40/5400+30:1800+30"]

{[%evp 20,117,0,0,0,0,0,0,107,-102,-74,-178,-164,-169,-110,-167,-154,-150,-92,-109,11,56,47,-121,-73,-91,-70,-88,-46,-61,-65,-67,-68,-46,39,13,109,51,59,51,48,0,129,111,439,581,588,597,587,581,506,479,609,609,577,615,593,600,600,573,624,620,548,655,669,660,903,879,909,824,897,870,12827,12833,12835,12833,12837,12837,12820,9337,12839,12839,12839,12838,12844,12845,12846,12845,12846,12845,12846,12845,12845,12845,12848,12845,12845,12845,12845,231]} 1. d4 {[%emt 0:00:03]} Nf6 {[%emt 0:01:13]} 2. c4 {[%emt 0:00:04]} e6 {[%emt 0:00:06]} 3. Nc3 {[%emt 0:00:05]} d5 {[%emt 0:00:03]} 4. Nf3 {[%emt 0:01:37]} dxc4 {[%emt 0:00:41]} 5. e3 {[%emt 0:00:36]} a6 {[%emt 0:00:41]} 6. Bxc4 {[%emt 0:02:40]} b5 {[%emt 0:00:11]} 7. Bd3 {[%emt 0:00:10]} Bb7 {[%emt 0:00:09]} 8. O-O {[%emt 0:01:24]} Nbd7 {[%emt 0:01:01]} 9. e4 c5 {[%emt 0:09:27]} 10. e5 {[%emt 0:11:59]} Nd5 {[%emt 0:12:18]} 11. Ng5 {[%emt 0:06:19]} Be7 {[%emt 0:27:50] D48: Semi-Slav: Meran System: 7...b5 8 Bd3 a6.} 12. Qh5 {[%emt 0:00:59][%csl Gg5][%cal Rh5f7]} g6 {[%emt 0:00:33]} 13. Qh6 {[%emt 0:00:50] aiming for Qg7.} Bf8 {[%emt 0:00:26] [#] Prevents Qg7.} (13... Nxc3 $11 {keeps the balance.} 14. bxc3 cxd4) 14. Qh3 $146 {[%emt 0:00:26] White is more active.} (14. Nxe6 $1 $16 {[%mdl 512] is forced if you want to stay better.} Bxh6 15. Nxd8 Rxd8 16. Bxh6) ({Predecessor:} 14. Nxe6 Bxh6 15. Nxd8 Bxc1 16. Nxb7 Nxc3 17. Rfxc1 Na4 18. b3 {1-0 (19) Hernandez Carmenates,H (2541)-Ramirez Medina,O (1914) Gran Canaria 2010}) 14... cxd4 $17 {[%emt 0:09:43]} 15. Nce4 {[%emt 0:03:48]} (15. Bxg6 $17 hxg6 16. Qxh8 dxc3 17. Ne4) 15... Nxe5 $19 {[%emt 0:03:31] Hoping for ...Qb6.} 16. Re1 {[%emt 0:46:44][%cal Og5e6]} Qe7 {[%emt 0:13:09]} (16... Bb4 $19 17. Rd1 Nxd3 18. Qxd3 e5) 17. Nxf7 {[%emt 0:11:18]} Nxf7 {[%emt 0:11:09]} (17... Kxf7 18. Ng5+ Kg8 19. Rxe5 $16) 18. Nd6+ {[%emt 0:00:09]} Nxd6 {[%emt 0:03:53]} (18... Qxd6 $142 19. Rxe6+ Be7 20. Rxd6 Bxd6) 19. Rxe6 $17 {[%emt 0:00:02] [#]} Bc8 {[%emt 0:02:35]} (19... Kf7 $1 $17 20. Rxe7+ Bxe7) 20. Rxe7+ $11 {[%emt 0:01:17]} Bxe7 {[%emt 0:00:06] [#]} (20... Kxe7 $2 21. Bg5+ Ke8 22. Re1+ Be7 23. Qf3 $18) 21. Qf3 {[%emt 0:00:44]} (21. Bxg6+ $1 $14 Kd8 22. Qh6) 21... Be6 {[%emt 0:00:29]} ({Better is} 21... Bb7 $1 {Threatens to win with ...Nb4.} 22. Bd2 Nb4 $1 {[%mdl 512]}) 22. Bh6 {[%emt 0:00:49]} Kd7 {[%emt 0:01:18]} 23. Re1 {[%emt 0:00:24]} Rhe8 {[%emt 0:00:47]} 24. Bg7 {[%emt 0:03:18]} Rac8 {[%emt 0:00:37]} 25. Bxd4 {[%emt 0:00:52]} Rf8 {[%emt 0:00:09]} 26. Qd1 {[%emt 0:01:45]} Nf4 {[%emt 0:00:42]} ({Black should try} 26... Rc6 $15) 27. Bf1 $14 {[%emt 0:00:43][%mdl 1024] White has compensation.} g5 {[%emt 0:00:34]} (27... Bd8 $11) 28. Be5 {[%emt 0:01:50]} (28. a4 $16) 28... Rc5 {[%emt 0:00:17]} (28... Bxa2 $2 29. g3 Ne6 30. Bh3 $18) 29. Qd4 {[%emt 0:00:48]} Rfc8 {[%emt 0:00:47]} 30. h4 {[%emt 0:01:15]} (30. Bxf4 $14 gxf4 31. Qxf4) 30... h6 {[%emt 0:00:25]} ({Don't take} 30... Bxa2 31. hxg5 Ne6 32. Qe3 Bxg5 33. Qa3 $14 (33. Qd3 Be7 $14)) (30... Ng6 $11 31. Bf6 (31. Bxd6 Bxd6 32. hxg5 Rc1 $11) 31... Rc1 32. Bxe7 Nxe7 33. Rxc1 Rxc1 34. Qa7+ Rc7 35. Qxa6 Rc1 36. Qa7+ Rc7) 31. g3 $36 {[%emt 0:00:39][%mdl 2048] Keeping Black busy. Dancing on a razor blade.} Ng6 {[%emt 0:00:32][%mdl 8192]} (31... Nd5 $2 32. Bxd6 Bxd6 {[#]} 33. Rxe6 $1 {[%mdl 512]} (33. Qg7+ Ne7 $18) 33... Kxe6 34. Bh3+ Kf7 35. Bxc8 Rc1+ 36. Kg2 Rxc8 37. hxg5 hxg5 38. Qxd5+ Ke7 39. Qxg5+ Kd7 40. Qg7+ Kd8 41. Qb7 $18) (31... Rc1 $16 {is tougher.} 32. Rxc1 Rxc1 33. Qa7+ (33. gxf4 Bc4 $14) 33... Kd8) 32. Bxd6 $18 {[%emt 0:00:45] White is clearly winning.} Bxd6 {[%emt 0:00:28] [#]} 33. Rxe6 {[%emt 0:00:13][%mdl 576] Remove Defender} Kxe6 {[%emt 0:00:31]} 34. Bh3+ {[%emt 0:00:02][%mdl 64] Skewer} Kf7 {[%emt 0:00:37] And now ...Rd8 would win.} 35. Bxc8 {[%emt 0:00:22]} ({Weaker is} 35. Qxd6 R8c6 36. Qd7+ Ne7 $16) 35... Be7 {[%emt 0:00:24]} 36. Bb7 {[%emt 0:00:49]} gxh4 {[%emt 0:00:22]} 37. Bd5+ {[%emt 0:00:17]} Ke8 {[%emt 0:00:28]} 38. Qe4 {[%emt 0:00:13]} Nf8 {[%emt 0:00:37]} 39. gxh4 {[%emt 0:00:30]} Kd8 {[%emt 0:00:29]} 40. b4 {[%emt 0:01:09]} Rc7 {[%emt 0:00:38]} 41. Bc6 {[%emt 0:30:48]} Nd7 {[%emt 0:07:12]} 42. a3 {[%emt 0:00:00]} Bd6 {[%emt 0:04:30]} 43. Bxd7 {[%emt 0:00:00]} Kxd7 {[%emt 0:01:49][%mdl 4096] Endgame KQ-KRB} 44. Qh7+ {[%emt 0:00:00]} Kc6 {[%emt 0:00:47]} 45. Qxh6 {[%emt 0:00:00]} a5 {[%emt 0:00:25]} 46. bxa5 {[%emt 0:00:00]} Ra7 {[%emt 0:00:45]} 47. Qc1+ {[%emt 0:00:00]} Kd7 {[%emt 0:00:09]} 48. Qc3 {[%emt 0:00:00]} Rc7 {[%emt 0:00:13]} 49. Qd3 {[%emt 0:00:00]} Ke6 {[%emt 0:01:12]} 50. Qxb5 {[%emt 0:00:00]} Be5 {[%emt 0:00:03]} 51. a6 {[%emt 0:00:00]} Kf5 {[%emt 0:00:08]} 52. Qd3+ {[%emt 0:00:00]} Kg4 {[%emt 0:00:54]} 53. Kg2 {[%emt 0:00:00]} Rg7 {[%emt 0:00:44]} 54. Qe4+ {[%emt 0:00:00]} Bf4 {[%emt 0:00:32]} 55. Qe6+ {[%emt 0:00:00]} Kh5+ {[%emt 0:01:44]} 56. Kf3 {[%emt 0:00:00]} Bh2 {[%emt 0:01:51]} 57. Qf5+ {[%emt 0:00:00]} Kh6 {[%emt 0:00:37]} 58. Qf6+ {[%emt 0:00:00]} Kh7 {[%emt 0:00:06] [#]} 59. Qxg7+ $3 {[%emt 0:00:00] White used his chance.  Weighted Error Value: White=0.23 (precise) /Black=0.60} 1-0

[Event "Mitropa Cup Women 2022"]
[Site "Corte"]
[Date "2022.05.08"]
[Round "9.6"]
[White "Hapala, Elisabeth"]
[Black "Bashylina, Luisa"]
[Result "0-1"]
[ECO "B90"]
[WhiteElo "2116"]
[BlackElo "1981"]
[Annotator "TA"]
[PlyCount "98"]
[EventDate "2022.04.30"]
[EventType "team-tourn"]
[EventCountry "FRA"]
[SourceTitle "playchess.com"]
[Source "ChessBase"]
[SourceQuality "1"]
[WhiteTeam "Austria"]
[BlackTeam "Germany"]
[WhiteTeamCountry "AUT"]
[BlackTeamCountry "GER"]
[TimeControl "40/5400+30:1800+30"]

{[%evp 12,98,40,0,11,0,21,12,15,15,46,56,69,36,71,62,79,70,66,47,55,25,95,97,152,170,188,108,297,158,310,0,0,0,0,0,0,-42,0,0,0,0,0,-65,-82,-150,-164,-166,-172,-162,-162,-153,-159,-171,-65,-116,-16,-11,-16,-118,-128,-139,0,0,8,-32,-34,-456,-454,-420,-426,-1310,-1331,-1257,-1259,-1116,-996,-924,-933,-5027,-5012,-5011,-4971,-5011,-4971,-4964,-4903,-4586,-2063]} 1. e4 {[%emt 0:00:01]} c5 {[%emt 0:00:03]} 2. Nf3 {[%emt 0:00:04]} d6 {[%emt 0:00:04]} 3. d4 {[%emt 0:00:03]} cxd4 {[%emt 0:00:05]} 4. Nxd4 {[%emt 0:00:03]} Nf6 {[%emt 0:00:06]} 5. Nc3 {[%emt 0:00:03]} a6 {[%emt 0:00:03]} 6. h3 {[%emt 0:00:10]} e5 {[%emt 0:00:04] The main line 6...e5 scores better than 6...e6.} 7. Nb3 {[%emt 0:00:07]} Be6 {[%emt 0:00:05] B90: Sicilian Najdorf: Unusual White 6th moves, 6 Be3 Ng4 and 6 Be3 e5.} 8. f4 $1 {[%emt 0:01:18]} b5 {[%emt 0:02:03][%cal Bb7b5,Bb5b4][%mdl 32]} 9. Qf3 {[%emt 0:01:12] [#]} b4 $146 {The position is equal.} ({Predecessor:} 9... Nc6 10. f5 Bxb3 11. axb3 Nd4 12. Qd3 d5 13. Nxd5 Nxd5 14. exd5 Bc5 15. b4 Bb6 {1-0 (31) Narayanan,S (2529)-Bocharov,D (2524) Moscow 2019}) 10. Nd5 Bxd5 {[%emt 0:00:49]} 11. exd5 {[%emt 0:00:36]} g6 {[%emt 0:01:11]} 12. Bd2 {[%emt 0:22:02]} e4 {[%emt 0:13:09]} 13. Qe3 {[%emt 0:06:01] And now g4 would win.} Bg7 {[%emt 0:18:08]} 14. Bxb4 {[%emt 0:11:21]} O-O $1 {[%emt 0:06:02]} 15. c4 $36 {[%emt 0:03:30][%mdl 2048] White is more active.} a5 {[%emt 0:02:45]} 16. Bc3 {[%emt 0:00:19] With the idea Nd4.} Nbd7 {[%emt 0:02:48]} (16... Na6 $1 $11 {remains equal.}) 17. Be2 $16 {[%emt 0:03:21]} a4 {[%emt 0:03:36]} (17... Qb6 $142 18. Bd4 Qb4+ 19. Bc3 Qb6) 18. Nd4 {[%emt 0:01:04]} Nb6 {[%emt 0:11:10]} 19. O-O {[%emt 0:17:39]} (19. Rd1 $18) 19... Re8 $2 {[%emt 0:12:06]} (19... a3 $16 {was worth a try.}) 20. Kh1 {[%emt 0:09:34]} (20. Nc6 $18 Qc7 21. Rad1) 20... Rc8 {[%emt 0:03:32]} (20... Qc8 $16 {was called for.}) 21. f5 $2 {[%emt 0:05:05]} (21. Nc6 $18 Qc7 22. Rad1) 21... Nxc4 $11 {[%emt 0:02:51]} 22. Bxc4 {[%emt 0:00:43]} Rxc4 {[%emt 0:00:05]} 23. fxg6 {[%emt 0:00:04]} hxg6 {[%emt 0:00:30]} 24. Qe2 {[%emt 0:07:40] [#]} (24. Nc6 $5 {[%cal Rc6d8]} Nxd5 25. Rxf7 Nxe3 26. Rxg7+ Kh8 27. Rb7+ Rxc3 28. Nxd8 $11) 24... Rxc3 {[%emt 0:06:17]} 25. bxc3 {[%emt 0:03:34]} Nxd5 {[%emt 0:02:44]} 26. Qc4 {[%emt 0:04:41][%csl LRa4,LRd5]} Qg5 {[%emt 0:02:11]} 27. Rab1 {[%emt 0:01:33]} (27. Qxa4 $11 Rf8 28. Ne2) 27... Nf4 $15 28. Rxf4 {[%emt 0:00:00]} Qxf4 $17 {[%emt 0:02:11]} 29. Rf1 {[%emt 0:02:17]} d5 $1 30. Qb5 {[%emt 0:00:12]} Qe5 {[%emt 0:02:41]} 31. Qxa4 {[%emt 0:00:49]} e3 {[%emt 0:03:20]} 32. Ne2 {[#]} Qe4 {[%emt 0:00:01]} (32... Rb8 $1 $19 33. Qd7 Bf6) 33. Qxe4 {[%emt 0:01:11]} (33. Qb5 $15) 33... Rxe4 $15 {[%emt 0:01:29][%mdl 4096] Endgame KRB-KRN} (33... dxe4 $17 34. Ra1 Rd8) 34. g3 $11 {[%emt 0:00:31]} Ra4 {[%emt 0:00:30]} 35. Ra1 {[%emt 0:00:32]} (35. Kg2 $1 $11) 35... Ra3 $17 {[%emt 0:01:13] White must now prevent ...Rxc3. Black is more active.} 36. Kg2 {[%emt 0:00:02]} Kf8 {[%emt 0:02:59]} (36... Bxc3 $17 37. Nxc3 Rxc3) 37. Kf3 $11 {[%emt 0:00:16]} Ke7 {[%emt 0:01:00]} 38. Kxe3 {[%emt 0:00:29]} d4+ {[%emt 0:00:23][%mdl 64] Deflection} 39. Nxd4 $2 {[%emt 0:01:15][%mdl 8192]} ({White should try} 39. Kd3 $15) 39... Rxc3+ $19 {[%emt 0:00:07]} 40. Ke4 {[%emt 0:00:00] [#]} f5+ $1 {[%emt 0:00:42]} ({And not} 40... Rc4 41. Rd1 $11) 41. Nxf5+ {[%emt 0:22:40]} (41. Kd5 $142 Rd3 42. a4 (42. Re1+ $2 Kf7 $19)) 41... gxf5+ {[%emt 0:00:08] KRB-KR} 42. Kd5 {[%emt 0:00:03]} Rd3+ {[%emt 0:04:20]} 43. Kc4 {[%emt 0:00:06]} Rxg3 {[%emt 0:01:21]} 44. Rh1 {[%emt 0:01:47]} Ra3 {[%emt 0:02:41]} 45. Rh2 {[%emt 0:01:30]} Be5 {[%emt 0:02:04]} 46. Re2 {[%emt 0:00:23]} Kf6 {[%emt 0:00:38]} 47. h4 {[%emt 0:00:18]} Ra4+ {[%emt 0:00:15]} 48. Kd5 {[%emt 0:00:07]} Rd4+ {[%emt 0:00:11]} 49. Kc5 {[%emt 0:00:04]} Rxh4 {[%emt 0:00:06] Both players deserved the win here.  Weighted Error Value: White=0.79/Black=0.28 (precise)} 0-1